[Event "Top 12 Féminin 2026"]
[Site "Asnières-sur-Seine, France"]
[Date "2026.05.13"]
[Round "1.16"]
[White "Tomasi, Elise"]
[Black "Djedidi, Rayhana"]
[Result "1-0"]
[TimeControl "1h30 / 40 moves + 30m + 30sec/move"]
[WhiteTitle "WFM"]
[BlackTitle "-"]
[WhiteFideId "-"]
[BlackFideId "-"]
[WhiteElo "2072"]
[BlackElo "1541"]

1. d4 {[%clk 01:30:44]} {[%emt 00:00:16]} d5 {[%clk 01:30:55]} {[%emt
00:00:06]} 2. Nf3 {[%clk 01:31:02]} {[%emt 00:00:11]} Nf6 {[%clk 01:31:19]}
{[%emt 00:00:07]} 3. g3 {[%clk 01:31:29]} {[%emt 00:00:03]} c6 {[%clk
01:31:36]} {[%emt 00:00:12]} 4. Bg2 {[%clk 01:31:33]} {[%emt 00:00:25]} Bf5
{[%clk 01:31:47]} {[%emt 00:00:20]} 5. O-O {[%clk 01:31:00]} {[%emt 00:01:03]}
h6 {[%clk 01:30:54]} {[%emt 00:01:24]} 6. c4 {[%clk 01:31:07]} {[%emt
00:00:23]} e6 {[%clk 01:31:17]} {[%emt 00:00:07]} 7. Nc3 {[%clk 01:31:04]}
{[%emt 00:00:33]} Be7 {[%clk 01:31:06]} {[%emt 00:00:41]} 8. Nd2 {[%clk
01:30:28]} {[%emt 00:01:06]} O-O {[%clk 01:29:27]} {[%emt 00:02:09]} 9. e4
{[%clk 01:27:49]} {[%emt 00:03:08]} dxe4 {[%clk 01:24:08]} {[%emt 00:05:50]} 10.
Ndxe4 {[%clk 01:28:07]} {[%emt 00:00:13]} Nbd7 {[%clk 01:24:24]} {[%emt
00:00:14]} 11. Be3 {[%clk 01:25:19]} {[%emt 00:03:17]} Nxe4 {[%clk 01:14:58]}
{[%emt 00:09:57]} 12. Nxe4 {[%clk 01:25:29]} {[%emt 00:00:20]} Nf6 {[%clk
01:15:15]} {[%emt 00:00:13]} 13. Nc3 {[%clk 01:24:47]} {[%emt 00:01:12]} Qc7
{[%clk 01:12:25]} {[%emt 00:03:20]} 14. Qe2 {[%clk 01:24:22]} {[%emt 00:00:55]}
Rad8 {[%clk 01:08:44]} {[%emt 00:04:11]} 15. Rac1 {[%clk 01:22:12]} {[%emt
00:02:40]} Qa5 {[%clk 01:01:35]} {[%emt 00:07:39]} 16. h3 {[%clk 01:17:01]}
{[%emt 00:05:41]} Rfe8 {[%clk 00:56:58]} {[%emt 00:05:08]} 17. Rfd1 {[%clk
01:16:45]} {[%emt 00:00:45]} Bb4 {[%clk 00:53:01]} {[%emt 00:04:27]} 18. Bf4
{[%clk 01:11:07]} {[%emt 00:06:08]} Rd7 {[%clk 00:48:29]} {[%emt 00:05:02]} 19.
g4 {[%clk 01:03:25]} {[%emt 00:08:12]} Bh7 {[%clk 00:48:43]} {[%emt 00:00:16]}
20. h4 {[%emt 00:09:31]} Rde7 {[%clk 00:41:12]} {[%emt 00:03:42]} 21. a3 {[%clk
00:56:18]} {[%emt 00:02:56]} Bxc3 {[%clk 00:40:41]} {[%emt 00:01:00]} 22. Rxc3
{[%clk 00:56:47]} {[%emt 00:00:01]} Qd8 {[%clk 00:37:06]} {[%emt 00:04:05]} 23.
g5 {[%clk 00:56:46]} {[%emt 00:00:31]} hxg5 {[%clk 00:36:58]} {[%emt 00:00:38]}
24. hxg5 {[%clk 00:56:49]} {[%emt 00:00:27]} Nd7 {[%clk 00:37:12]} {[%emt
00:00:17]} 25. Bd6 {[%clk 00:56:34]} {[%emt 00:00:45]} Nf8 {[%clk 00:34:31]}
{[%emt 00:03:10]} 26. Bxe7 Qxe7 {[%clk 00:34:55]} 27. Qh5 {[%clk 00:52:51]}
{[%emt 00:03:01]} Bf5 {[%clk 00:32:30]} {[%emt 00:02:55]} 28. Bh3 {[%clk
00:49:57]} {[%emt 00:03:24]} Bg6 {[%clk 00:29:44]} {[%emt 00:03:16]} 29. Qh4
{[%clk 00:50:04]} {[%emt 00:00:22]} Nh7 {[%clk 00:21:08]} {[%emt 00:09:06]} 30.
Rg3 {[%clk 00:49:05]} {[%emt 00:01:29]} Qc7 {[%clk 00:18:32]} {[%emt 00:03:07]}
31. Bg2 {[%clk 00:49:03]} {[%emt 00:00:32]} Bf5 {[%clk 00:18:29]} {[%emt
00:00:33]} 32. Be4 {[%clk 00:49:19]} {[%emt 00:00:14]} Bxe4 {[%clk 00:16:51]}
{[%emt 00:02:09]} 33. Qxe4 {[%clk 00:49:39]} {[%emt 00:00:09]} g6 {[%clk
00:17:03]} {[%emt 00:00:19]} 34. Qh4 {[%clk 00:49:36]} {[%emt 00:00:32]} f6
{[%clk 00:15:58]} {[%emt 00:01:36]} 35. gxf6 {[%clk 00:49:57]} {[%emt
00:00:08]} Qf7 {[%clk 00:16:25]} {[%emt 00:00:02]} 36. Qh6 {[%clk 00:49:51]}
{[%emt 00:00:36]} 1-0

[Event "Top 12 Féminin 2026"]
[Site "Asnières-sur-Seine, France"]
[Date "2026.05.14"]
[Round "2.1"]
[White "Ushenina, Anna"]
[Black "Savina, Anastasia"]
[Result "1/2-1/2"]
[TimeControl "1h30 / 40 moves + 30m + 30sec/move"]
[WhiteTitle "GM"]
[BlackTitle "IM"]
[WhiteFideId "-"]
[BlackFideId "-"]
[WhiteElo "2420"]
[BlackElo "2344"]

1. d4 {[%clk 01:30:58]} {[%emt 00:00:01]} d5 {[%clk 01:29:51]} {[%emt
00:01:09]} 2. c4 {[%clk 01:31:18]} {[%emt 00:00:11]} e6 {[%clk 01:30:09]}
{[%emt 00:00:12]} 3. Nf3 {[%clk 01:31:34]} {[%emt 00:00:14]} Nf6 {[%clk
01:28:01]} {[%emt 00:02:38]} 4. cxd5 {[%clk 01:24:38]} {[%emt 00:07:26]} exd5
{[%clk 01:23:42]} {[%emt 00:04:48]} 5. Qc2 {[%clk 01:23:52]} {[%emt 00:01:17]}
Ne4 {[%clk 01:04:29]} {[%emt 00:19:44]} 6. Nc3 {[%clk 01:19:11]} {[%emt
00:05:11]} Bf5 {[%clk 00:35:20]} {[%emt 00:29:38]} 7. Qb3 {[%clk 01:13:54]}
{[%emt 00:05:48]} Nc6 {[%clk 00:33:34]} {[%emt 00:02:16]} 8. a3 {[%clk
00:49:32]} {[%emt 00:24:53]} Nxc3 {[%clk 00:17:46]} {[%emt 00:16:18]} 9. Qxc3
{[%clk 00:42:57]} {[%emt 00:07:05]} a5 {[%clk 00:15:08]} {[%emt 00:03:08]} 10.
Bf4 {[%clk 00:37:55]} {[%emt 00:05:32]} Bd6 {[%clk 00:13:19]} {[%emt 00:02:19]}
11. Bxd6 {[%clk 00:36:05]} {[%emt 00:02:21]} Qxd6 {[%clk 00:13:12]} {[%emt
00:00:37]} 12. e3 {[%clk 00:36:06]} {[%emt 00:00:29]} O-O {[%clk 00:12:45]}
{[%emt 00:00:57]} 13. Be2 {[%clk 00:32:06]} {[%emt 00:04:30]} Nb8 {[%clk
00:07:51]} {[%emt 00:05:25]} 14. O-O {[%clk 00:30:02]} {[%emt 00:02:35]} Nd7
{[%clk 00:06:57]} {[%emt 00:01:24]} 15. Rfc1 {[%clk 00:17:13]} {[%emt
00:13:18]} c6 {[%clk 00:07:01]} {[%emt 00:00:26]} 16. Nd2 {[%clk 00:16:39]}
{[%emt 00:01:05]} a4 {[%clk 00:05:56]} {[%emt 00:01:35]} 17. Qb4 {[%clk
00:16:38]} {[%emt 00:00:30]} Qxb4 {[%clk 00:04:02]} {[%emt 00:02:24]} 18. axb4
{[%clk 00:17:07]} {[%emt 00:00:02]} Rfc8 {[%clk 00:04:22]} {[%emt 00:00:10]} 19.
Ra3 {[%clk 00:16:59]} {[%emt 00:00:38]} Kf8 {[%clk 00:03:49]} {[%emt 00:01:03]}
20. Rac3 {[%clk 00:16:32]} {[%emt 00:00:57]} Ke7 {[%clk 00:03:27]} {[%emt
00:00:52]} 21. f3 {[%clk 00:12:56]} {[%emt 00:04:06]} Nf6 {[%clk 00:02:57]}
{[%emt 00:01:00]} 22. Kf2 {[%clk 00:12:01]} {[%emt 00:01:25]} Bd7 {[%clk
00:02:12]} {[%emt 00:01:15]} 23. Ra1 {[%clk 00:10:13]} {[%emt 00:02:18]} b5
{[%clk 00:00:32]} {[%emt 00:02:10]} 24. Rca3 {[%clk 00:10:38]} {[%emt
00:00:05]} Rab8 {[%clk 00:00:33]} {[%emt 00:00:29]} 25. b3 {[%clk 00:11:01]}
{[%emt 00:00:07]} Ne8 {[%clk 00:00:35]} {[%emt 00:00:27]} 26. bxa4 {[%clk
00:03:33]} {[%emt 00:07:58]} bxa4 {[%clk 00:01:04]} {[%emt 00:00:01]} 27. Bd1
{[%clk 00:03:09]} {[%emt 00:00:54]} Rxb4 {[%clk 00:01:19]} {[%emt 00:00:15]} 28.
Bxa4 {[%clk 00:03:35]} {[%emt 00:00:04]} Rb2 {[%clk 00:01:12]} {[%emt
00:00:38]} 29. Ke2 {[%clk 00:02:48]} {[%emt 00:01:17]} Nd6 {[%clk 00:01:00]}
{[%emt 00:00:42]} 30. Rb3 {[%clk 00:02:48]} {[%emt 00:00:30]} Rxb3 {[%clk
00:00:34]} {[%emt 00:00:56]} 31. Bxb3 {[%clk 00:02:30]} {[%emt 00:00:48]} Rb8
{[%clk 00:00:54]} {[%emt 00:00:10]} 32. Rc1 {[%clk 00:01:44]} {[%emt 00:01:16]}
Ra8 {[%clk 00:01:00]} {[%emt 00:00:24]} 33. Bc2 {[%clk 00:01:29]} {[%emt
00:00:45]} Ra3 {[%clk 00:00:36]} {[%emt 00:00:53]} 34. Bb3 {[%clk 00:01:01]}
{[%emt 00:00:58]} Nb5 {[%clk 00:00:38]} {[%emt 00:00:28]} 35. g4 {[%clk
00:00:42]} {[%emt 00:00:49]} Kd6 {[%clk 00:00:59]} {[%emt 00:00:09]} 36. h3
{[%clk 00:00:54]} {[%emt 00:00:18]} Bc8 {[%clk 00:00:34]} {[%emt 00:00:56]} 37.
Kf2 {[%clk 00:01:08]} {[%emt 00:00:16]} Ba6 {[%clk 00:00:41]} {[%emt 00:00:22]}
38. Rc2 {[%clk 00:01:08]} {[%emt 00:00:29]} Ra1 {[%clk 00:00:35]} {[%emt
00:00:37]} 39. Ra2 {[%clk 00:01:05]} {[%emt 00:00:33]} Rxa2 {[%clk 00:00:51]}
{[%emt 00:00:13]} 40. Bxa2 {[%clk 00:01:33]} {[%emt 00:00:01]} Nc3 {[%clk
00:00:38]} {[%emt 00:00:43]} 41. Bb3 {[%clk 00:01:52]} {[%emt 00:00:12]} Bd3
{[%clk 00:16:40]} {[%emt 00:14:28]} 42. Ke1 {[%clk 00:31:35]} {[%emt 00:00:47]}
Nb1 {[%clk 00:07:17]} {[%emt 00:09:53]} 43. Nxb1 {[%clk 00:30:43]} {[%emt
00:01:22]} Bxb1 {[%clk 00:07:43]} {[%emt 00:00:03]} 44. h4 {[%clk 00:28:22]}
{[%emt 00:02:50]} h6 {[%clk 00:07:28]} {[%emt 00:00:47]} 45. Kd2 {[%clk
00:27:23]} {[%emt 00:01:29]} c5 {[%clk 00:07:10]} {[%emt 00:00:47]} 46. dxc5+
{[%clk 00:25:18]} {[%emt 00:02:36]} Kxc5 {[%clk 00:07:36]} {[%emt 00:00:04]} 47.
Kc3 {[%clk 00:25:45]} {[%emt 00:00:02]} g5 {[%clk 00:06:58]} {[%emt 00:01:08]}
48. hxg5 {[%clk 00:26:07]} {[%emt 00:00:09]} hxg5 {[%clk 00:07:24]} {[%emt
00:00:03]} 49. Ba4 {[%clk 00:24:58]} {[%emt 00:01:39]} 1/2-1/2

[Event "Top 12 Féminin 2026"]
[Site "Asnières-sur-Seine, France"]
[Date "2026.05.14"]
[Round "2.2"]
[White "Zatonskih, Anna"]
[Black "Aflalo, Sophie"]
[Result "1-0"]
[TimeControl "1h30 / 40 moves + 30m + 30sec/move"]
[WhiteTitle "IM"]
[BlackTitle "-"]
[WhiteFideId "-"]
[BlackFideId "-"]
[WhiteElo "2317"]
[BlackElo "2155"]

1. d4 {[%clk 01:30:57]} {[%emt 00:00:02]} Nf6 {[%clk 01:28:00]} {[%emt
00:03:00]} 2. c4 {[%clk 01:31:14]} {[%emt 00:00:13]} e5 {[%clk 01:26:14]}
{[%emt 00:02:16]} 3. dxe5 {[%clk 01:21:59]} {[%emt 00:09:45]} Ng4 {[%clk
01:26:03]} {[%emt 00:00:40]} 4. Bf4 {[%clk 01:04:46]} {[%emt 00:17:43]} g5
{[%clk 01:26:13]} {[%emt 00:00:20]} 5. Bd2 {[%clk 01:00:04]} {[%emt 00:05:12]}
Nc6 {[%clk 01:08:09]} {[%emt 00:18:34]} 6. h4 {[%clk 00:47:35]} {[%emt
00:12:59]} gxh4 {[%clk 00:55:06]} {[%emt 00:13:32]} 7. Nf3 {[%clk 00:43:47]}
{[%emt 00:04:19]} Bc5 {[%clk 00:42:32]} {[%emt 00:13:04]} 8. e3 {[%clk
00:43:08]} {[%emt 00:01:09]} d6 {[%clk 00:42:25]} {[%emt 00:00:37]} 9. exd6
{[%clk 00:40:10]} {[%emt 00:03:28]} Be6 {[%clk 00:36:54]} {[%emt 00:06:01]} 10.
Nc3 {[%clk 00:29:52]} {[%emt 00:10:49]} Rg8 {[%clk 00:19:40]} {[%emt 00:17:44]}
11. Ne4 {[%clk 00:20:06]} {[%emt 00:10:16]} cxd6 {[%clk 00:16:20]} {[%emt
00:03:50]} 12. Bc3 {[%clk 00:18:02]} {[%emt 00:02:34]} Qe7 {[%clk 00:12:49]}
{[%emt 00:04:00]} 13. Nxc5 {[%clk 00:17:35]} {[%emt 00:00:57]} dxc5 {[%clk
00:13:07]} {[%emt 00:00:12]} 14. Rxh4 {[%clk 00:17:26]} {[%emt 00:00:39]} Nd4
{[%clk 00:01:44]} {[%emt 00:11:54]} 15. Bxd4 {[%clk 00:14:57]} {[%emt
00:02:59]} O-O-O {[%clk 00:02:12]} {[%emt 00:00:02]} 16. Be2 {[%clk 00:14:01]}
{[%emt 00:01:25]} Kb8 {[%clk 00:02:04]} {[%emt 00:00:38]} 17. Rxg4 {[%clk
00:08:30]} {[%emt 00:06:01]} Bxg4 {[%clk 00:01:20]} {[%emt 00:01:14]} 18. Be5+
{[%clk 00:08:55]} {[%emt 00:00:06]} Ka8 {[%clk 00:01:04]} {[%emt 00:00:46]} 19.
Qb3 {[%clk 00:09:23]} {[%emt 00:00:02]} Rg6 {[%clk 00:00:51]} {[%emt 00:00:43]}
20. Bf4 {[%clk 00:07:11]} {[%emt 00:02:41]} Rb6 {[%clk 00:00:44]} {[%emt
00:00:38]} 21. Qc3 {[%clk 00:07:02]} {[%emt 00:00:40]} Bf5 {[%clk 00:00:32]}
{[%emt 00:00:42]} 22. Rd1 {[%clk 00:06:03]} {[%emt 00:01:29]} Be4 {[%clk
00:00:37]} {[%emt 00:00:25]} 23. Qe5 {[%clk 00:04:44]} {[%emt 00:01:49]} Re6
{[%clk 00:00:35]} {[%emt 00:00:32]} 24. Rxd8+ {[%clk 00:04:07]} {[%emt
00:01:06]} Qxd8 {[%clk 00:01:03]} {[%emt 00:00:02]} 25. Qxc5 {[%clk 00:04:27]}
{[%emt 00:00:10]} Ra6 {[%clk 00:00:47]} {[%emt 00:00:47]} 26. a3 {[%clk
00:04:30]} {[%emt 00:00:27]} Qg8 {[%emt 00:00:47]} 27. Qd4 {[%clk 00:03:30]}
{[%emt 00:01:28]} f5 {[%clk 00:00:43]} {[%emt 00:00:18]} 28. Bc7 {[%clk
00:02:25]} {[%emt 00:01:36]} Rg6 {[%clk 00:30:00]} {[%emt 00:00:42]} 1-0

[Event "Top 12 Féminin 2026"]
[Site "Asnières-sur-Seine, France"]
[Date "2026.05.14"]
[Round "2.3"]
[White "Maisuradze, Nino"]
[Black "Thomas, Anysia"]
[Result "1-0"]
[TimeControl "1h30 / 40 moves + 30m + 30sec/move"]
[WhiteTitle "WGM"]
[BlackTitle "WFM"]
[WhiteFideId "-"]
[BlackFideId "-"]
[WhiteElo "2198"]
[BlackElo "2120"]

1. d4 {[%clk 01:30:56]} {[%emt 00:00:04]} Nf6 {[%clk 01:30:29]} {[%emt
00:00:31]} 2. Nf3 {[%clk 01:31:03]} {[%emt 00:00:24]} g6 {[%clk 01:30:52]}
{[%emt 00:00:06]} 3. Nc3 {[%clk 01:30:36]} {[%emt 00:00:57]} d5 {[%clk
01:28:37]} {[%emt 00:02:45]} 4. Bf4 {[%clk 01:30:58]} {[%emt 00:00:07]} Bg7
{[%clk 01:29:00]} {[%emt 00:00:07]} 5. Qd2 {[%clk 01:26:53]} {[%emt 00:04:36]}
Ne4 {[%clk 01:19:52]} {[%emt 00:09:38]} 6. Qe3 {[%clk 01:21:27]} {[%emt
00:05:56]} c5 {[%clk 01:14:08]} {[%emt 00:06:14]} 7. Be5 {[%clk 01:15:57]}
{[%emt 00:06:00]} Nf6 {[%clk 01:09:48]} {[%emt 00:04:50]} 8. Qd2 {[%clk
00:52:02]} {[%emt 00:24:25]} Nc6 {[%clk 01:02:03]} {[%emt 00:08:15]} 9. e3
{[%clk 00:42:52]} {[%emt 00:09:41]} O-O {[%clk 00:53:58]} {[%emt 00:08:35]} 10.
Be2 {[%clk 00:23:01]} {[%emt 00:20:20]} Ne4 {[%clk 00:38:52]} {[%emt 00:15:36]}
11. Nxe4 {[%clk 00:19:16]} {[%emt 00:04:16]} dxe4 {[%clk 00:39:12]} {[%emt
00:00:10]} 12. Bxg7 {[%clk 00:19:18]} {[%emt 00:00:27]} exf3 {[%clk 00:30:30]}
{[%emt 00:09:11]} 13. Bxf8 {[%clk 00:19:30]} {[%emt 00:00:18]} fxe2 {[%clk
00:30:53]} {[%emt 00:00:07]} 14. Bh6 {[%clk 00:18:07]} {[%emt 00:01:52]} Qd5
{[%clk 00:27:50]} {[%emt 00:03:33]} 15. f3 {[%emt 00:10:21]} Qh5 {[%clk
00:20:03]} 16. Bf4 {[%clk 00:16:28]} {[%emt 00:00:35]} cxd4 {[%clk 00:19:59]}
{[%emt 00:00:34]} 17. Qxe2 {[%clk 00:12:47]} {[%emt 00:04:12]} Qa5+ {[%clk
00:14:56]} {[%emt 00:05:33]} 18. Qd2 {[%clk 00:11:09]} {[%emt 00:02:08]} Qb5
{[%clk 00:12:48]} {[%emt 00:02:37]} 19. exd4 {[%clk 00:03:53]} {[%emt
00:07:46]} Bf5 {[%clk 00:09:41]} {[%emt 00:03:38]} 20. c3 {[%clk 00:03:52]}
{[%emt 00:00:31]} e5 {[%clk 00:09:16]} {[%emt 00:00:55]} 21. Be3 {[%clk
00:02:34]} {[%emt 00:01:47]} exd4 {[%clk 00:01:21]} {[%emt 00:08:25]} 22. Bxd4
{[%clk 00:02:41]} {[%emt 00:00:23]} Rc8 {[%clk 00:01:38]} {[%emt 00:00:13]} 23.
Rc1 {[%clk 00:01:48]} {[%emt 00:01:23]} Qd5 {[%clk 00:01:08]} {[%emt 00:01:00]}
24. O-O {[%clk 00:01:30]} {[%emt 00:00:48]} Qxa2 {[%clk 00:00:52]} {[%emt
00:00:46]} 25. Ra1 {[%clk 00:01:29]} {[%emt 00:00:31]} Qd5 {[%clk 00:01:05]}
{[%emt 00:00:17]} 26. Be3 {[%clk 00:01:45]} {[%emt 00:00:14]} Qc4 {[%clk
00:01:02]} {[%emt 00:00:32]} 27. Bxa7 {[%clk 00:01:37]} {[%emt 00:00:39]} Rd8
{[%clk 00:00:55]} {[%emt 00:00:37]} 28. Qf2 {[%clk 00:01:35]} {[%emt 00:00:31]}
Re8 {[%clk 00:00:39]} {[%emt 00:00:46]} 29. Rfe1 {[%clk 00:01:38]} {[%emt
00:00:28]} Be6 {[%clk 00:00:33]} {[%emt 00:00:36]} 30. Bd4 {[%clk 00:01:50]}
{[%emt 00:00:18]} Nxd4 {[%clk 00:00:35]} {[%emt 00:00:28]} 31. Qxd4 {[%clk
00:01:39]} {[%emt 00:00:41]} Qb5 {[%clk 00:00:38]} {[%emt 00:00:27]} 32. c4
{[%clk 00:01:21]} {[%emt 00:00:49]} Qb4 {[%clk 00:00:55]} {[%emt 00:00:13]} 33.
Qd3 {[%clk 00:00:47]} {[%emt 00:01:04]} Qxb2 {[%clk 00:00:38]} {[%emt
00:00:47]} 34. Rab1 {[%clk 00:01:04]} {[%emt 00:00:13]} Qa2 {[%clk 00:00:33]}
{[%emt 00:00:34]} 35. Rxb7 {[%clk 00:00:57]} {[%emt 00:00:37]} Qa5 {[%clk
00:00:35]} {[%emt 00:00:29]} 36. Rbb1 {[%clk 00:00:46]} {[%emt 00:00:41]} Rc8
{[%clk 00:00:42]} {[%emt 00:00:23]} 37. Ra1 {[%clk 00:00:36]} {[%emt 00:00:40]}
Qc5+ {[%clk 00:00:48]} {[%emt 00:00:24]} 38. Kh1 {[%clk 00:00:41]} {[%emt
00:00:24]} Bxc4 {[%clk 00:00:56]} {[%emt 00:00:22]} 39. Qe4 {[%clk 00:00:33]}
{[%emt 00:00:39]} Bd5 {[%clk 00:00:43]} {[%emt 00:00:43]} 40. Qe5 {[%clk
00:00:47]} {[%emt 00:00:16]} Be6 {[%clk 00:00:41]} {[%emt 00:00:33]} 41. Qf6
{[%clk 00:00:41]} {[%emt 00:00:36]} Qc3 {[%clk 00:25:19]} {[%emt 00:05:51]} 42.
Qf4 {[%clk 00:30:01]} {[%emt 00:01:10]} Rd8 {[%clk 00:17:30]} {[%emt 00:08:19]}
43. Rac1 {[%clk 00:29:34]} {[%emt 00:00:57]} Qd2 {[%clk 00:16:41]} {[%emt
00:01:19]} 44. Qf6 {[%clk 00:29:26]} {[%emt 00:00:38]} h6 {[%clk 00:09:11]}
{[%emt 00:08:00]} 45. Ra1 {[%clk 00:28:51]} {[%emt 00:01:06]} Rc8 {[%clk
00:04:06]} {[%emt 00:05:34]} 46. h4 {[%clk 00:24:23]} {[%emt 00:04:58]} Qd5
{[%clk 00:02:01]} {[%emt 00:02:35]} 47. Re5 {[%clk 00:22:56]} {[%emt 00:01:58]}
Qc4 {[%clk 00:01:37]} {[%emt 00:00:54]} 48. Rae1 {[%clk 00:20:34]} {[%emt
00:02:52]} Rc6 {[%clk 00:01:21]} {[%emt 00:00:45]} 49. h5 {[%clk 00:20:03]}
{[%emt 00:01:01]} g5 {[%clk 00:01:07]} {[%emt 00:00:44]} 50. R5e4 {[%clk
00:12:11]} {[%emt 00:08:22]} Qc3 {[%clk 00:00:39]} {[%emt 00:00:57]} 51. Qxh6
{[%clk 00:12:07]} {[%emt 00:00:34]} Qg7 {[%clk 00:00:34]} {[%emt 00:00:36]} 52.
Qxg7+ {[%clk 00:12:32]} {[%emt 00:00:05]} Kxg7 {[%clk 00:01:03]} {[%emt
00:00:01]} 53. Re5 {[%clk 00:11:49]} {[%emt 00:01:13]} Kf6 {[%clk 00:01:12]}
{[%emt 00:00:21]} 54. Kh2 {[%clk 00:11:26]} {[%emt 00:00:52]} Rc4 {[%clk
00:01:29]} {[%emt 00:00:13]} 55. R5e4 {[%clk 00:11:23]} {[%emt 00:00:34]} Rc2
{[%clk 00:01:32]} {[%emt 00:00:27]} 56. Kg3 {[%clk 00:11:16]} {[%emt 00:00:36]}
Rb2 {[%clk 00:01:32]} {[%emt 00:00:30]} 57. Rh1 {[%clk 00:09:53]} {[%emt
00:01:54]} Kg7 {[%clk 00:01:01]} {[%emt 00:01:00]} 58. h6+ {[%clk 00:09:40]}
{[%emt 00:00:43]} Kh7 {[%clk 00:01:26]} {[%emt 00:00:06]} 59. Re5 {[%clk
00:09:10]} {[%emt 00:00:59]} g4 {[%clk 00:01:05]} {[%emt 00:00:51]} 60. fxg4
{[%clk 00:08:10]} {[%emt 00:01:31]} Rb3+ {[%clk 00:01:00]} {[%emt 00:00:35]} 61.
Kf4 {[%clk 00:08:05]} {[%emt 00:00:35]} Rb4+ {[%clk 00:00:45]} {[%emt
00:00:45]} 62. Re4 {[%clk 00:08:30]} {[%emt 00:00:05]} Rb2 {[%clk 00:01:02]}
{[%emt 00:00:13]} 63. Rxe6 {[%clk 00:05:24]} {[%emt 00:03:36]} fxe6 {[%clk
00:01:27]} {[%emt 00:00:05]} 64. Kg5 {[%clk 00:05:35]} {[%emt 00:00:19]} Rb4
{[%clk 00:00:33]} {[%emt 00:01:24]} 65. Kh5 {[%clk 00:05:05]} {[%emt 00:01:00]}
1-0

[Event "Top 12 Féminin 2026"]
[Site "Asnières-sur-Seine, France"]
[Date "2026.05.14"]
[Round "2.4"]
[White "Stoll, Lucia"]
[Black "Alexieva, Silvia"]
[Result "1/2-1/2"]
[TimeControl "1h30 / 40 moves + 30m + 30sec/move"]
[WhiteTitle "-"]
[BlackTitle "IM"]
[WhiteFideId "-"]
[BlackFideId "-"]
[WhiteElo "2103"]
[BlackElo "2197"]

1. e4 {[%clk 01:30:59]} e5 {[%clk 01:30:28]} {[%emt 00:00:33]} 2. Nf3 {[%clk
01:29:51]} {[%emt 00:01:37]} Nc6 {[%clk 01:30:47]} {[%emt 00:00:11]} 3. Bc4
{[%clk 01:29:26]} {[%emt 00:00:56]} Nf6 {[%clk 01:29:33]} {[%emt 00:01:44]} 4.
d3 {[%clk 01:28:56]} {[%emt 00:01:00]} Bc5 {[%clk 01:28:43]} {[%emt 00:01:19]}
5. c3 {[%clk 01:28:54]} {[%emt 00:00:33]} d6 {[%clk 01:28:43]} {[%emt
00:00:30]} 6. b4 {[%clk 01:28:02]} {[%emt 00:01:22]} Bb6 {[%clk 01:28:29]}
{[%emt 00:00:45]} 7. a4 {[%clk 01:26:53]} {[%emt 00:01:39]} a5 {[%clk
01:26:57]} {[%emt 00:02:02]} 8. b5 {[%clk 01:25:01]} {[%emt 00:02:21]} Nb8
{[%clk 01:18:26]} {[%emt 00:09:01]} 9. Be3 {[%clk 01:20:05]} {[%emt 00:05:26]}
Bxe3 {[%clk 01:14:49]} {[%emt 00:04:08]} 10. fxe3 {[%clk 01:20:33]} {[%emt
00:00:02]} O-O {[%clk 01:15:09]} {[%emt 00:00:09]} 11. O-O {[%clk 01:14:53]}
{[%emt 00:06:11]} c6 {[%clk 01:14:57]} {[%emt 00:00:42]} 12. Nbd2 {[%clk
00:48:57]} {[%emt 00:26:25]} d5 {[%clk 01:01:01]} {[%emt 00:14:27]} 13. exd5
{[%clk 00:48:35]} {[%emt 00:00:52]} cxd5 {[%clk 01:00:45]} {[%emt 00:00:46]} 14.
Ba2 {[%clk 00:46:08]} {[%emt 00:02:58]} Nbd7 {[%clk 00:57:55]} {[%emt
00:03:20]} 15. d4 {[%clk 00:39:14]} {[%emt 00:07:24]} e4 {[%clk 00:53:52]}
{[%emt 00:04:32]} 16. Ne1 {[%clk 00:31:05]} {[%emt 00:08:40]} Nb6 {[%clk
00:54:09]} {[%emt 00:00:12]} 17. h3 {[%clk 00:28:30]} {[%emt 00:03:05]} Be6
{[%clk 00:53:07]} {[%emt 00:01:31]} 18. Rc1 {[%clk 00:25:02]} {[%emt 00:03:59]}
Rc8 {[%clk 00:50:01]} {[%emt 00:03:36]} 19. Rf2 {[%clk 00:18:40]} {[%emt
00:06:52]} Rc7 {[%clk 00:45:28]} {[%emt 00:05:03]} 20. g4 {[%clk 00:13:15]}
{[%emt 00:05:55]} Qc8 {[%clk 00:39:07]} {[%emt 00:06:51]} 21. c4 {[%clk
00:09:19]} {[%emt 00:04:27]} dxc4 {[%clk 00:38:03]} {[%emt 00:01:34]} 22. Rxf6
{[%clk 00:09:26]} {[%emt 00:00:23]} gxf6 {[%clk 00:38:25]} {[%emt 00:00:07]} 23.
Nxe4 {[%clk 00:09:54]} {[%emt 00:00:02]} f5 {[%clk 00:34:22]} {[%emt 00:04:33]}
24. Nf6+ {[%clk 00:08:30]} {[%emt 00:01:54]} Kg7 {[%clk 00:33:00]} {[%emt
00:01:52]} 25. g5 {[%clk 00:05:00]} {[%emt 00:04:00]} Nd5 {[%clk 00:30:50]}
{[%emt 00:02:39]} 26. Qh5 {[%clk 00:04:53]} {[%emt 00:00:37]} Nxf6 {[%clk
00:25:45]} {[%emt 00:05:35]} 27. gxf6+ {[%clk 00:05:22]} {[%emt 00:00:02]} Kxf6
{[%clk 00:25:24]} {[%emt 00:00:51]} 28. Qh4+ {[%clk 00:05:27]} {[%emt
00:00:24]} Kg6 {[%clk 00:24:49]} {[%emt 00:01:05]} 29. Qg3+ {[%clk 00:05:37]}
{[%emt 00:00:20]} Kh6 {[%clk 00:20:39]} {[%emt 00:04:40]} 30. Qh4+ {[%clk
00:05:49]} {[%emt 00:00:18]} Kg6 {[%clk 00:21:04]} {[%emt 00:00:06]} 31. Qg3+
{[%clk 00:04:57]} {[%emt 00:01:22]} Kh6 {[%clk 00:21:28]} {[%emt 00:00:05]} 32.
Qh4+ {[%clk 00:04:19]} {[%emt 00:01:08]} Kg6 {[%clk 00:21:50]} {[%emt
00:00:08]} 1/2-1/2